bitfinex/quotes_BTCUSD_20250204
["timestamp","ask_amount","ask_price","bid_price","bid_amount"]
[1738670610771,0.151368,99097.0,99084.0,0.151386]
[1738670610984,0.33915258,99108.0,99085.0,0.103596]
[1738670611209,0.15121167,99107.0,99085.0,0.10238506]
[1738670611560,0.201827,99095.0,99085.0,0.10238506]
[1738670611769,0.201804,99106.0,99085.0,0.10238506]
[1738670611969,0.15,99103.0,99085.0,0.10238506]
[1738670612172,0.151368,99096.0,99085.0,0.10238506]
[1738670612506,0.33915258,99108.0,99086.0,0.1212]
[1738670612507,0.201806,99105.0,99086.0,0.1212]
[1738670612707,0.33915258,99108.0,99087.0,0.10238506]
[1738670612917,0.151367,99097.0,99087.0,0.10238506]
[1738670613145,0.151364,99099.0,99087.0,0.10238506]
[1738670613343,0.20181,99103.0,99087.0,0.10238506]
[1738670613544,0.151364,99099.0,99087.0,0.10238506]
[1738670613991,0.15,99106.0,99087.0,0.10238506]
[1738670614195,0.15,99106.0,99087.0,0.25376506]
[1738670614399,0.15,99106.0,99087.0,0.10238506]
[1738670614527,0.151365,99099.0,99087.0,0.10238506]
[1738670614731,0.15,99107.0,99087.0,0.10438506]
[1738670614939,0.00121167,99106.0,99087.0,0.10438506]
[1738670615141,0.15,99107.0,99087.0,0.10238506]
[1738670615343,0.151366,99097.0,99087.0,0.10238506]
[1738670615547,0.151359,99102.0,99087.0,0.10438506]
[1738670615753,0.15,99105.0,99088.0,0.15138]
[1738670615955,0.151364,99099.0,99089.0,0.10238506]
[1738670616367,0.15,99107.0,99089.0,0.10238506]
[1738670616566,0.151364,99099.0,99089.0,0.10238506]
[1738670616968,0.151362,99100.0,99089.0,0.10238506]
[1738670617368,0.151364,99099.0,99089.0,0.10238506]
[1738670617536,0.15,99105.0,99089.0,0.10238506]
[1738670617675,0.151364,99099.0,99089.0,0.10238506]
[1738670618113,0.151364,99099.0,99089.0,0.10438506]
[1738670618342,0.15,99106.0,99089.0,0.10238506]
[1738670618554,0.201822,99098.0,99089.0,0.10438506]
[1738670618759,0.151367,99097.0,99089.0,0.10438506]
[1738670619080,0.15137,99095.0,99089.0,0.10238506]
[1738670619697,0.151361,99101.0,99089.0,0.25376306]
[1738670619908,0.201808,99104.0,99089.0,0.10238506]
[1738670620107,0.15,99109.0,99089.0,0.10238506]
[1738670620320,0.151363,99099.0,99089.0,0.10438506]
[1738670620532,0.132366,99098.0,99089.0,0.10238506]
[1738670620936,0.201817,99100.0,99089.0,0.10438506]
[1738670621177,0.151369,99096.0,99089.0,0.10438506]
[1738670621770,0.151369,99096.0,99089.0,0.10238506]
[1738670621971,0.151366,99098.0,99089.0,0.10238506]
[1738670622234,0.151366,99098.0,99089.0,0.10438506]
[1738670622972,0.0001068,99106.0,99089.0,0.10559598]
[1738670623178,0.0001068,99106.0,99089.0,0.10438506]
[1738670623377,0.151357,99103.0,99090.0,0.151377]
[1738670623681,0.151357,99103.0,99091.0,0.10238506]
[1738670623967,0.0001068,99106.0,99105.0,0.227454]
[1738670624099,0.0001068,99106.0,99105.0,0.37623906]
[1738670625550,0.0001068,99128.0,99106.0,0.0761]
[1738670625753,0.151322,99126.0,99114.0,0.151339]
[1738670625961,0.151324,99125.0,99115.0,0.10238506]
[1738670626194,0.0002483,99128.0,99116.0,0.0781]
[1738670626344,0.151325,99125.0,99117.0,0.10238506]
[1738670626752,0.201761,99127.0,99117.0,0.10238506]
[1738670626950,0.151332,99120.0,99117.0,0.10238506]
[1738670627152,0.151326,99124.0,99117.0,0.10238506]
[1738670627494,0.151324,99125.0,99117.0,0.10238506]
[1738670627679,0.0002483,99128.0,99117.0,0.10238506]
[1738670627905,0.1515683,99128.0,99117.0,0.10238506]
[1738670628079,0.0002483,99128.0,99118.0,0.0469]
[1738670628262,0.0002483,99128.0,99119.0,0.10238506]
[1738670629074,0.1515683,99128.0,99119.0,0.10238506]
[1738670629408,0.1515673,99128.0,99119.0,0.10238506]
[1738670629578,0.0002483,99128.0,99119.0,0.10238506]
[1738670629933,0.151321,99127.0,99119.0,0.10238506]
[1738670630401,0.0002483,99128.0,99119.0,0.10238506]
[1738670630544,0.1325673,99129.0,99119.0,0.10238506]
[1738670630738,0.15132,99128.0,99119.0,0.10438506]
[1738670631193,0.15132,99128.0,99119.0,0.10238506]
[1738670631394,0.15132,99128.0,99119.0,0.10438506]
[1738670631811,0.15132,99128.0,99119.0,0.10238506]
[1738670632835,0.201755,99130.0,99119.0,0.10238506]
[1738670633042,0.33887188,99130.0,99119.0,0.10238506]
[1738670633246,0.151331,99120.0,99119.0,0.10438506]
[1738670633658,0.15254267,99120.0,99119.0,0.002]
[1738670634052,0.201769,99123.0,99103.0,0.3999]
[1738670634362,0.151346,99110.0,99105.0,0.00022407]
[1738670634512,0.151343,99112.0,99106.0,0.10238506]
[1738670634695,0.151345,99111.0,99106.0,0.10238506]
[1738670634894,0.00121167,99122.0,99106.0,0.10238506]
[1738670635352,0.151344,99112.0,99106.0,0.10238506]
[1738670635547,0.11822358,99130.0,99106.0,0.10238506]
[1738670635753,0.15134,99114.0,99106.0,0.10238506]
[1738670635953,0.201763,99126.0,99106.0,0.10238506]
[1738670636232,0.151343,99113.0,99106.0,0.10238506]
[1738670636461,0.151346,99111.0,99106.0,0.10238506]
[1738670636979,0.151346,99111.0,99106.0,0.10438506]
[1738670637235,0.201767,99124.0,99106.0,0.10438506]
[1738670637439,0.151343,99113.0,99106.0,0.10238506]
[1738670637657,0.00121167,99123.0,99106.0,0.10438506]
[1738670638663,0.151343,99113.0,99106.0,0.10438506]
[1738670638963,0.151342,99114.0,99106.0,0.10438506]
[1738670639160,0.201777,99120.0,99106.0,0.10238506]
[1738670639393,0.201781,99118.0,99106.0,0.10238506]
[1738670639577,0.151344,99112.0,99106.0,0.10438506]
[1738670639936,0.02291282,99130.0,99106.0,0.10438506]
[1738670640146,0.151336,99118.0,99106.0,0.10438506]
[1738670640348,0.151336,99118.0,99106.0,0.10238506]
[1738670640543,0.132336,99118.0,99106.0,0.10238506]
[1738670640745,0.151336,99117.0,99106.0,0.10438506]
[1738670641187,0.151334,99119.0,99106.0,0.10438506]
[1738670641378,0.151334,99119.0,99106.0,0.25573706]
[1738670641579,0.201757,99129.0,99106.0,0.25573706]
[1738670641580,0.151335,99118.0,99106.0,0.10438506]
[1738670642227,0.151335,99118.0,99106.0,0.10238506]
[1738670642822,0.151333,99119.0,99106.0,0.10238506]
[1738670642980,0.151334,99118.0,99106.0,0.10238506]
[1738670643175,0.201757,99129.0,99106.0,0.10438506]
[1738670643375,0.151334,99119.0,99106.0,0.10438506]
[1738670643589,0.201751,99132.0,99106.0,0.10238506]
[1738670643801,0.00121167,99131.0,99107.0,0.0468]
[1738670643957,0.15133,99121.0,99108.0,0.17758506]
[1738670644389,0.151326,99124.0,99109.0,0.151347]
[1738670644593,0.15,99131.0,99110.0,0.10238506]
[1738670644788,0.151332,99120.0,99110.0,0.10238506]
[1738670646323,0.201764,99126.0,99110.0,0.10438506]
[1738670646496,0.00121167,99125.0,99110.0,0.10438506]
[1738670646698,0.151333,99119.0,99110.0,0.10438506]
[1738670647028,0.151335,99118.0,99110.0,0.10438506]
[1738670647440,0.15925799,99130.0,99110.0,0.10438506]
[1738670647782,0.15925799,99130.0,99110.0,0.10238506]
[1738670647783,0.151317,99129.0,99110.0,0.10238506]
[1738670647962,0.151341,99114.0,99110.0,0.10238506]
[1738670648378,0.201783,99117.0,99110.0,0.10238506]
[1738670648554,0.151345,99111.0,99110.0,0.10238506]
[1738670649484,0.201786,99115.0,99110.0,0.10238506]
[1738670649689,0.262369,99124.0,99110.0,0.10438506]
[1738670649823,0.151345,99112.0,99110.0,0.10438506]
[1738670650043,0.08256708,99124.0,99110.0,0.10238506]
[1738670650245,0.08256708,99124.0,99110.0,0.10438506]
[1738670650451,0.13234,99114.0,99110.0,0.10438506]
[1738670650652,0.13234,99114.0,99110.0,0.10238506]
[1738670650965,0.13234,99114.0,99110.0,0.10438506]
[1738670651165,0.151336,99118.0,99110.0,0.10438506]
[1738670651373,0.20177,99123.0,99110.0,0.10438506]
[1738670651570,0.151331,99121.0,99110.0,0.10438506]
[1738670651789,0.02196708,99124.0,99110.0,0.10438506]
[1738670651992,0.151335,99118.0,99110.0,0.10438506]
[1738670652204,0.151338,99116.0,99110.0,0.10238506]
[1738670652407,0.151345,99112.0,99110.0,0.10238506]
[1738670652605,0.201771,99122.0,99110.0,0.10438506]
[1738670652957,0.151345,99111.0,99110.0,0.10238506]
[1738670653148,0.151345,99111.0,99110.0,0.10438506]
[1738670653497,0.151345,99111.0,99110.0,0.10238506]
[1738670653699,0.151345,99111.0,99110.0,0.10438506]
[1738670654101,0.151345,99111.0,99110.0,0.10238506]
[1738670655006,0.201761,99127.0,99110.0,0.10238506]
[1738670655216,0.201759,99128.0,99111.0,0.1214]
[1738670655415,0.02251651,99128.0,99112.0,0.10238506]
[1738670655635,0.151333,99119.0,99112.0,0.10238506]
[1738670655832,0.151329,99122.0,99112.0,0.10238506]
[1738670656035,0.0001068,99130.0,99112.0,0.10238506]
[1738670656241,0.151324,99125.0,99112.0,0.10238506]
[1738670656639,0.0001068,99130.0,99112.0,0.10238506]
[1738670656848,0.151328,99123.0,99112.0,0.10238506]
[1738670657054,0.151328,99122.0,99112.0,0.10438506]
[1738670657349,0.0001068,99130.0,99112.0,0.10238506]
[1738670657549,0.15133,99121.0,99112.0,0.10238506]
[1738670657950,0.151328,99122.0,99112.0,0.10238506]
[1738670658164,0.0001068,99130.0,99117.0,0.151335]
[1738670658363,0.0001068,99130.0,99118.0,0.1324074]
[1738670658571,0.0001068,99130.0,99119.0,0.18135434]
[1738670658766,0.0001068,99130.0,99120.0,0.1324074]
[1738670658972,0.0001068,99130.0,99121.0,0.03002234]
[1738670659270,0.0001068,99130.0,99122.0,0.10238506]
[1738670660163,0.1514228,99130.0,99122.0,0.10238506]
[1738670660385,0.0001068,99130.0,99122.0,0.10238506]
[1738670660567,0.02189341,99137.0,99122.0,0.10238506]
[1738670660918,0.201744,99136.0,99122.0,0.10438506]
[1738670661122,0.151312,99133.0,99122.0,0.10438506]
[1738670661279,0.151313,99132.0,99122.0,0.10438506]
[1738670661489,0.201738,99138.0,99122.0,0.10438506]
[1738670661694,0.151308,99136.0,99123.0,0.15422121]
[1738670661890,0.0001068,99139.0,99124.0,0.10238506]
[1738670662100,0.151306,99137.0,99124.0,0.10238506]
[1738670662336,0.151307,99136.0,99124.0,0.10238506]
[1738670662533,0.151308,99135.0,99124.0,0.10238506]
[1738670663589,0.151308,99135.0,99124.0,0.10438506]
[1738670663945,0.151308,99135.0,99124.0,0.10238506]
[1738670664287,0.151307,99136.0,99124.0,0.10238506]
[1738670664491,0.151305,99137.0,99124.0,0.10238506]
[1738670664695,0.0001068,99139.0,99124.0,0.10238506]
[1738670664696,0.0001068,99139.0,99128.0,0.151319]
[1738670664847,0.0001068,99139.0,99129.0,0.20296742]
[1738670665048,0.0001068,99139.0,99132.0,0.201749]
[1738670665224,0.0001068,99139.0,99136.0,0.1283]
[1738670665429,0.0001068,99139.0,99137.0,0.10238506]
[1738670665657,0.1323898,99152.0,99137.0,0.10238506]
[1738670666065,0.151288,99149.0,99137.0,0.10238506]
[1738670666260,0.201707,99154.0,99137.0,0.10238506]
[1738670666482,0.13711688,99150.0,99137.0,0.10238506]
[1738670666689,7.138e-05,99154.0,99137.0,0.10438506]
[1738670666916,0.151286,99150.0,99137.0,0.10238506]
[1738670667325,0.151286,99150.0,99137.0,0.10438506]
[1738670667539,0.151284,99151.0,99137.0,0.10438506]
[1738670668278,0.02300448,99154.0,99137.0,0.10438506]
[1738670668479,0.151285,99151.0,99137.0,0.10238506]
[1738670668679,0.02300448,99154.0,99140.0,0.1513]
[1738670668989,0.02300448,99154.0,99141.0,0.10238506]
[1738670669173,0.151283,99152.0,99141.0,0.10238506]
[1738670669378,0.02300448,99154.0,99141.0,0.10238506]
[1738670669580,0.17428448,99154.0,99141.0,0.10238506]
[1738670669807,0.02300448,99154.0,99141.0,0.10238506]
[1738670670138,0.02300448,99154.0,99142.0,0.151298]
[1738670670346,0.02300448,99154.0,99143.0,0.10238506]
[1738670670544,7.138e-05,99154.0,99146.0,0.15129]
[1738670670770,0.151269,99161.0,99147.0,0.10238506]
[1738670671080,0.15,99170.0,99147.0,0.10238506]
[1738670671315,0.151273,99158.0,99147.0,0.10238506]
[1738670671526,0.151275,99157.0,99147.0,0.10238506]
[1738670671701,0.0001067,99154.0,99147.0,0.10238506]
[1738670673085,0.0001067,99154.0,99148.0,0.0772]
[1738670673291,0.0001067,99154.0,99149.0,0.10238506]
[1738670674250,0.0001067,99154.0,99150.0,0.0494]
[1738670674478,0.0001067,99154.0,99151.0,0.10238506]
[1738670674673,0.0001067,99154.0,99153.0,0.151281]
[1738670674884,0.0001067,99154.0,99153.0,0.25366606]
[1738670675089,0.0001067,99154.0,99153.0,0.33356606]
[1738670675293,0.0001067,99154.0,99153.0,0.18228506]
[1738670675694,0.201677,99169.0,99153.0,0.18228506]
[1738670675883,0.151263,99165.0,99154.0,0.10238506]
[1738670676427,0.201655,99179.0,99154.0,0.10238506]
[1738670676674,0.151266,99163.0,99154.0,0.10238506]
[1738670676924,0.201661,99176.0,99154.0,0.10238506]
[1738670677124,0.13711688,99170.0,99154.0,0.10238506]
[1738670677337,0.201675,99169.0,99154.0,0.10238506]
[1738670677546,0.13711688,99170.0,99154.0,0.10438506]
[1738670677702,0.151267,99163.0,99154.0,0.10238506]
[1738670677905,0.17281928,99180.0,99157.0,0.0822]
[1738670678111,0.17281928,99180.0,99158.0,0.10238506]
[1738670678340,0.201655,99179.0,99160.0,0.151269]
[1738670678516,0.02281928,99180.0,99161.0,0.10238506]
[1738670678715,0.151243,99178.0,99162.0,0.151267]
[1738670678925,0.151246,99176.0,99163.0,0.10238506]
[1738670679675,0.201653,99180.0,99163.0,0.10238506]
[1738670679902,0.15,99179.0,99163.0,0.10238506]
[1738670680076,0.151253,99172.0,99163.0,0.10238506]
[1738670680307,0.15,99179.0,99163.0,0.10438506]
[1738670680476,0.151254,99171.0,99163.0,0.10438506]
[1738670680683,0.201668,99173.0,99163.0,0.10238506]
[1738670680856,0.151248,99175.0,99163.0,0.10438506]
[1738670681416,0.151254,99171.0,99163.0,0.10238506]
[1738670681636,0.02228297,99181.0,99163.0,0.10238506]
[1738670681867,0.151247,99175.0,99163.0,0.10238506]
[1738670682628,0.15,99180.0,99163.0,0.10438506]
[1738670682830,0.0001067,99181.0,99169.0,0.10238506]
[1738670683027,0.0001067,99181.0,99171.0,0.229252]
[1738670683230,0.0001067,99181.0,99172.0,0.25363606]
[1738670683397,0.0001067,99181.0,99174.0,0.151249]
[1738670683593,0.0001067,99181.0,99176.0,0.248561]
[1738670683799,0.0001067,99181.0,99177.0,0.10238506]
[1738670685602,0.1473815,99189.0,99177.0,0.10238506]
[1738670685769,0.00047169,99188.0,99177.0,0.10238506]
[1738670686739,0.151241,99179.0,99177.0,0.10438506]
[1738670687165,0.151239,99181.0,99177.0,0.10238506]
[1738670687365,0.15124,99180.0,99177.0,0.10438506]
[1738670687572,0.20211069,99188.0,99177.0,0.10438506]
[1738670687573,0.151243,99179.0,99177.0,0.10438506]
[1738670687742,0.00047169,99188.0,99177.0,0.10438506]
[1738670687743,0.151243,99178.0,99177.0,0.10438506]
[1738670688337,0.151243,99178.0,99177.0,0.002]
[1738670688541,0.377143,99178.0,99177.0,0.002]
[1738670688759,0.51075788,99178.0,99177.0,0.002]
[1738670688990,0.51075788,99178.0,99145.0,0.0479]
[1738670688991,0.201712,99151.0,99145.0,0.0479]
[1738670689216,0.201712,99151.0,99146.0,0.10238506]
[1738670689422,0.201696,99159.0,99146.0,0.10238506]
[1738670689627,0.201704,99155.0,99146.0,0.10238506]
[1738670689827,0.151284,99151.0,99146.0,0.10238506]
[1738670690275,0.201707,99154.0,99146.0,0.10238506]
[1738670690480,0.132287,99149.0,99146.0,0.10438506]
[1738670690685,0.15129,99147.0,99146.0,0.10238506]
[1738670690876,0.151295,99144.0,99136.0,0.0777]
[1738670691079,0.151295,99144.0,99135.0,0.0462]
[1738670691080,0.151295,99144.0,99143.0,0.10268051]
[1738670693262,0.151295,99144.0,99143.0,0.10468051]
[1738670695635,0.132295,99144.0,99143.0,0.10468051]
[1738670700338,0.132295,99144.0,99143.0,0.00229545]
[1738670700573,0.201723,99146.0,99143.0,0.00229545]
[1738670700782,0.151295,99144.0,99143.0,0.00229545]
[1738670701416,0.15587203,99144.0,99143.0,0.00229545]
[1738670701612,0.15587203,99144.0,99143.0,0.00029545]
[1738670702040,0.15587203,99144.0,99143.0,0.00229545]
[1738670703694,0.00457703,99144.0,99143.0,0.25597651]
[1738670703919,0.00457703,99144.0,99143.0,0.30327651]
[1738670704035,0.02814043,99162.0,99143.0,0.17995287]
[1738670704267,0.30266087,99169.0,99143.0,0.17995287]
[1738670704268,0.30266087,99169.0,99144.0,0.10238506]
[1738670704500,0.00463027,99161.0,99145.0,0.201724]
[1738670704699,0.151277,99156.0,99146.0,0.10238506]
[1738670704900,0.14174603,99160.0,99146.0,0.10238506]
[1738670705074,0.15129,99147.0,99146.0,0.10238506]
[1738670705284,0.15596399,99147.0,99146.0,0.10238506]
[1738670705487,0.00467399,99147.0,99146.0,0.10238506]
[1738670705687,0.151278,99156.0,99146.0,0.10238506]
[1738670705890,0.15596198,99155.0,99146.0,0.10238506]
[1738670706145,0.151285,99150.0,99146.0,0.10238506]
[1738670706348,0.13711688,99160.0,99146.0,0.10238506]
[1738670706465,0.151289,99148.0,99146.0,0.10438506]
[1738670706919,0.13711688,99160.0,99146.0,0.10238506]
[1738670707141,0.13711688,99160.0,99146.0,0.10438506]
[1738670707411,0.151281,99154.0,99146.0,0.10438506]
[1738670707630,0.201702,99156.0,99146.0,0.10438506]
[1738670707843,0.151264,99165.0,99148.0,0.201718]
[1738670708059,0.151263,99165.0,99151.0,0.151284]
[1738670708235,0.151267,99163.0,99152.0,0.10238506]
[1738670708456,0.151264,99165.0,99152.0,0.10238506]
[1738670708659,0.201661,99177.0,99152.0,0.10238506]
[1738670708660,0.15,99179.0,99153.0,0.0499]
[1738670708857,0.201645,99184.0,99154.0,0.30408906]
[1738670709064,0.30266087,99185.0,99161.0,0.151269]
[1738670709359,0.15,99184.0,99162.0,0.10238506]
[1738670709782,0.201649,99182.0,99162.0,0.10238506]
[1738670709895,0.201647,99183.0,99163.0,0.233466]
[1738670710120,0.3308041,99185.0,99164.0,0.10238506]
[1738670710579,0.151249,99174.0,99164.0,0.10238506]
[1738670710814,0.151263,99165.0,99164.0,0.10238506]
[1738670711039,0.201657,99178.0,99161.0,0.002]
[1738670711040,0.151267,99162.0,99161.0,0.002]
[1738670711262,0.151267,99162.0,99161.0,0.10438506]
[1738670711722,0.201682,99166.0,99161.0,0.10438506]
[1738670711984,0.201682,99166.0,99161.0,0.10238506]
[1738670712244,0.151263,99165.0,99163.0,0.002]
[1738670712491,0.0001069,99169.0,99161.0,0.10238506]
[1738670712742,0.0001069,99169.0,99143.0,0.02854691]
[1738670712743,0.0001069,99169.0,99162.0,0.18558506]
[1738670712953,0.0001069,99169.0,99164.0,0.151264]
[1738670713173,0.0001069,99169.0,99168.0,0.151258]
[1738670713398,0.0001069,99169.0,99168.0,0.25364306]
[1738670713603,0.0001069,99169.0,99168.0,0.33684306]
[1738670713830,0.0001069,99169.0,99168.0,0.38644306]
[1738670715654,0.201627,99193.0,99168.0,0.23518506]
[1738670715859,0.201627,99193.0,99176.0,0.151245]
[1738670716067,0.02748147,99194.0,99181.0,0.151238]
[1738670716265,0.17870047,99194.0,99182.0,0.10238506]
[1738670716657,0.0001068,99199.0,99182.0,0.10238506]
[1738670716861,0.15122,99193.0,99182.0,0.10238506]
[1738670717087,0.151225,99190.0,99182.0,0.10238506]
[1738670717510,0.151223,99191.0,99182.0,0.10238506]
[1738670717775,0.201627,99193.0,99182.0,0.10238506]
[1738670718039,0.403232,99198.0,99182.0,0.10238506]
[1738670718300,0.151223,99191.0,99182.0,0.10238506]
[1738670718779,0.151223,99191.0,99182.0,0.10438506]
[1738670718997,0.151223,99191.0,99182.0,0.10238506]
[1738670719471,0.151223,99191.0,99182.0,0.10438506]
[1738670719821,0.151218,99194.0,99182.0,0.10238506]
[1738670720057,0.151221,99193.0,99182.0,0.25362106]
[1738670720328,0.151222,99192.0,99182.0,0.10438506]
[1738670720575,0.151224,99191.0,99182.0,0.10438506]
[1738670720824,0.151226,99190.0,99182.0,0.10438506]
[1738670721320,0.151227,99189.0,99182.0,0.10438506]
[1738670721557,0.02760076,99199.0,99183.0,0.332547]
[1738670721801,0.201616,99198.0,99184.0,0.10238506]
[1738670722022,0.201614,99199.0,99184.0,0.10238506]
[1738670722197,0.151218,99195.0,99184.0,0.10238506]
[1738670722840,0.15122,99193.0,99184.0,0.10238506]
[1738670723059,0.15122,99193.0,99184.0,0.10438506]
[1738670723450,0.15122,99193.0,99184.0,0.10238506]
[1738670723669,0.151219,99194.0,99184.0,0.10238506]
[1738670724013,0.151217,99196.0,99184.0,0.10238506]
[1738670724224,0.151217,99196.0,99184.0,0.25361806]
[1738670724415,0.201618,99198.0,99184.0,0.10238506]
[1738670724626,0.0001069,99199.0,99184.0,0.10238506]
[1738670724824,0.151215,99197.0,99185.0,0.151232]
[1738670725058,0.151212,99198.0,99186.0,0.25361506]
[1738670725266,0.151215,99197.0,99186.0,0.10238506]
[1738670725667,0.02808672,99203.0,99186.0,0.10238506]
[1738670725839,0.151217,99195.0,99186.0,0.10238506]
[1738670726765,0.151217,99195.0,99186.0,0.10438506]
[1738670727179,0.151217,99195.0,99186.0,0.10238506]
[1738670727386,0.151217,99195.0,99186.0,0.10438506]
[1738670728727,0.151214,99198.0,99186.0,0.25561506]
[1738670728930,0.151214,99197.0,99186.0,0.10438506]
[1738670729184,0.201614,99200.0,99186.0,0.10438506]
[1738670729185,0.151216,99196.0,99186.0,0.10438506]
[1738670729381,0.201604,99204.0,99186.0,0.10438506]
[1738670729583,0.151221,99192.0,99186.0,0.10438506]
[1738670729838,0.151242,99179.0,99175.0,0.0769]
[1738670729995,0.13711688,99190.0,99186.0,0.002]
[1738670730206,0.151229,99187.0,99186.0,0.002]
[1738670730411,0.06049,99197.0,99174.0,0.0476]
[1738670730575,0.11811688,99190.0,99174.0,0.10238506]
[1738670730991,0.151247,99175.0,99174.0,0.10238506]
[1738670732021,0.15830345,99175.0,99174.0,0.10238506]
[1738670732219,0.15830345,99175.0,99174.0,0.10285704]
[1738670732649,0.15830345,99175.0,99174.0,0.00047198]
[1738670732931,0.18671236,99175.0,99174.0,0.00047198]
[1738670733489,0.18671236,99175.0,99174.0,0.00247198]
[1738670733698,0.18671236,99175.0,99174.0,0.00047198]
[1738670734099,0.18671236,99175.0,99174.0,0.00247198]
[1738670734309,0.18671236,99175.0,99174.0,0.00047198]
[1738670734737,0.18671236,99175.0,99174.0,0.00247198]
[1738670735253,0.18671236,99175.0,99174.0,0.00269626]
[1738670735754,0.16771236,99175.0,99174.0,0.00269626]
[1738670738263,0.22820236,99175.0,99174.0,0.00269626]
[1738670738515,0.16771236,99175.0,99174.0,0.00269626]
[1738670739088,0.15,99174.0,99154.0,0.0774]
[1738670739288,0.13711688,99164.0,99144.0,0.07747138]
[1738670739447,0.151291,99147.0,99145.0,0.10238506]
[1738670739653,0.00695316,99163.0,99145.0,0.10238506]
[1738670739848,0.00694868,99146.0,99145.0,0.25367806]
[1738670740114,0.151278,99155.0,99146.0,0.201722]
[1738670740325,0.201678,99168.0,99148.0,0.151288]
[1738670740524,0.00695065,99154.0,99149.0,0.10238506]
[1738670740730,0.08058464,99175.0,99149.0,0.10238506]
[1738670741141,0.00695558,99174.0,99149.0,0.10238506]
[1738670741347,0.00695558,99174.0,99157.0,0.151274]
[1738670741548,0.201667,99173.0,99158.0,0.10238506]
[1738670741752,0.08058464,99175.0,99158.0,0.10238506]
[1738670741753,0.151263,99165.0,99158.0,0.25365806]
[1738670742166,0.00694067,99164.0,99158.0,0.25365806]
[1738670742380,0.00694067,99164.0,99158.0,0.10238506]
[1738670742805,0.15820567,99164.0,99158.0,0.10238506]
[1738670744066,0.151266,99163.0,99158.0,0.10438506]
[1738670744422,0.00694759,99162.0,99158.0,0.10238506]
[1738670744626,0.00694759,99162.0,99158.0,0.10438506]
[1738670744860,0.02826662,99168.0,99158.0,0.10438506]
[1738670745074,0.00694734,99161.0,99158.0,0.10238506]
[1738670745432,0.00694709,99160.0,99158.0,0.10438506]
[1738670745633,0.151259,99167.0,99158.0,0.10438506]
[1738670745838,0.00663107,99159.0,99158.0,0.10438506]
[1738670746034,0.151269,99161.0,99158.0,0.10438506]
[1738670746257,0.0066324,99159.0,99158.0,0.10438506]
[1738670746449,0.151265,99164.0,99158.0,0.10438506]
[1738670746658,0.0066324,99159.0,99158.0,0.10238506]
[1738670746876,0.151262,99166.0,99158.0,0.10238506]
[1738670747070,0.0066324,99159.0,99158.0,0.10438506]
[1738670747293,0.151261,99166.0,99158.0,0.10238506]
[1738670747489,0.151263,99165.0,99158.0,0.10238506]
[1738670747689,0.15789688,99165.0,99158.0,0.10438506]
[1738670748474,0.15789688,99165.0,99158.0,0.10238506]
[1738670748677,0.151265,99164.0,99158.0,0.10260934]
[1738670748973,0.00687939,99163.0,99158.0,0.10260934]
[1738670749389,0.201679,99167.0,99158.0,0.10260934]
[1738670749590,0.201665,99174.0,99158.0,0.10260934]
[1738670749786,0.151265,99164.0,99158.0,0.10260934]
[1738670750250,0.00687939,99163.0,99158.0,0.10460934]
[1738670750452,0.151267,99162.0,99158.0,0.10260934]
[1738670750651,0.00687939,99163.0,99158.0,0.10260934]
[1738670750863,0.00656917,99161.0,99158.0,0.10460934]
[1738670751094,0.00656897,99160.0,99158.0,0.10260934]
[1738670751311,0.151261,99167.0,99158.0,0.25388134]
[1738670751520,0.15783245,99166.0,99158.0,0.10460934]
[1738670751728,0.15783245,99166.0,99162.0,0.151266]
[1738670751729,0.00657045,99166.0,99162.0,0.151266]
[1738670751947,0.151251,99173.0,99163.0,0.25365006]
[1738670752171,0.00657192,99172.0,99163.0,0.10238506]
[1738670752419,0.151254,99171.0,99163.0,0.10238506]
[1738670752833,0.00657143,99170.0,99163.0,0.10238506]
[1738670753058,0.03495873,99175.0,99163.0,0.10238506]
[1738670753262,0.00657118,99169.0,99163.0,0.10238506]
[1738670753464,0.151254,99171.0,99163.0,0.10238506]
[1738670753672,0.00657094,99168.0,99163.0,0.10238506]
[1738670753899,0.403318,99177.0,99163.0,0.10238506]
[1738670754103,0.00657069,99167.0,99163.0,0.10238506]
[1738670754309,0.151255,99171.0,99163.0,0.10238506]
[1738670754525,0.00657045,99166.0,99163.0,0.10238506]
[1738670754725,0.151255,99171.0,99163.0,0.10238506]
[1738670754905,0.0065702,99165.0,99163.0,0.10438506]
[1738670755046,0.151252,99173.0,99163.0,0.10438506]
[1738670755414,0.151255,99171.0,99163.0,0.10238506]
[1738670755583,0.132255,99171.0,99163.0,0.10438506]
[1738670755789,0.00657143,99170.0,99163.0,0.10438506]
[1738670756368,0.15782643,99170.0,99163.0,0.10438506]
[1738670756570,0.201663,99176.0,99163.0,0.10438506]
[1738670756913,0.00657118,99169.0,99163.0,0.10438506]
[1738670757050,0.151255,99171.0,99163.0,0.10438506]
[1738670757251,0.00657094,99168.0,99163.0,0.10238506]
[1738670757488,0.151256,99170.0,99163.0,0.10238506]
[1738670757701,0.502893,99180.0,99163.0,0.10438506]
[1738670757913,0.03427392,99184.0,99164.0,0.045]
[1738670758154,0.201649,99183.0,99170.0,0.0768]
[1738670758355,0.00657463,99183.0,99171.0,0.10238506]
[1738670758557,0.0001068,99190.0,99171.0,0.10238506]
[1738670758757,0.0001068,99190.0,99172.0,0.0494]
[1738670758969,0.00657611,99189.0,99173.0,0.10238506]
[1738670759170,0.15780311,99189.0,99177.0,0.151243]
[1738670759368,0.151228,99188.0,99178.0,0.10238506]
[1738670759589,0.15780386,99188.0,99178.0,0.10238506]
[1738670760358,0.00704755,99188.0,99178.0,0.25362806]
[1738670760555,0.13927355,99189.0,99178.0,0.10238506]
[1738670760758,0.0001068,99182.0,99178.0,0.10238506]
[1738670760967,0.00606005,99181.0,99178.0,0.10238506]
[1738670761606,0.151229,99187.0,99178.0,0.10238506]
[1738670761848,0.00706976,99180.0,99178.0,0.10285675]
[1738670762026,0.151229,99187.0,99178.0,0.10385675]
[1738670762236,0.151232,99186.0,99178.0,0.10385675]
[1738670762444,0.00707156,99186.0,99178.0,0.10385675]
[1738670762646,0.03538359,99192.0,99178.0,0.10385675]
[1738670762829,0.151222,99192.0,99178.0,0.25409875]
[1738670763236,0.151228,99188.0,99178.0,0.10285675]
[1738670763550,0.00707187,99187.0,99178.0,0.10285675]
[1738670763751,0.201633,99191.0,99178.0,0.10285675]
[1738670763957,0.15829677,99190.0,99178.0,0.10285675]
[1738670764118,0.151226,99189.0,99178.0,0.10485675]
[1738670764317,0.00707217,99188.0,99178.0,0.10485675]